bitfinex-derivatives/quotes_ETHF0:USTF0_20251013
["timestamp","ask_amount","ask_price","bid_price","bid_amount"]
[1760354996461,0.481,4057.3,4056.6,0.44331]
[1760354996654,1.3061,4057.2,4056.3,3.2078]
[1760354996852,1.3061,4057.2,4053.6,11.09101]
[1760354996853,1.3061,4055.9,4050.8,2.21974]
[1760354997057,1.3061,4055.9,4050.2,1.73412025]
[1760354997058,1.7871,4054.7,4054.4,3.2078]
[1760354997263,3.2078,4054.6,4053.2,0.5692]
[1760354997561,3.2078,4054.6,4049.8,11.10159]
[1760354997562,3.2078,4052.6,4049.2,0.44412]
[1760354997751,3.2078,4049.7,4049.4,0.5163]
[1760354997957,3.2078,4049.7,4048.1,1.40880889]
[1760354997958,3.2078,4048.4,4048.1,1.40880889]
[1760354998162,3.2078,4048.4,4045.2,0.24720351]
[1760354998163,11.0992,4050.7,4045.9,0.19802147]
[1760354998359,2.65880531,4048.3,4045.2,0.24720351]
[1760354998561,2.65880531,4048.3,4042.6,12.90705]
[1760354998562,0.44428,4047.8,4044.7,0.213]
[1760354998861,0.44472,4043.9,4043.0,0.04300982]
[1760354999056,11.11319,4045.6,4041.3,0.5163]
[1760354999057,0.44445,4046.3,4041.7,0.94410351]
[1760354999256,0.5692,4041.9,4041.8,0.324]
[1760354999460,3.2078,4043.6,4041.8,0.44494]
[1760354999664,3.2078,4044.7,4042.8,3.2078]
[1760354999856,3.2078,4045.0,4043.9,3.2078]
[1760355000057,5.84686061,4044.4,4041.8,1.88820702]
[1760355000252,3.2078,4042.2,4041.8,1.88820702]
[1760355000456,11.1111,4046.4,4041.8,1.88820702]
[1760355000457,1.7505,4046.8,4042.1,3.2078]
[1760355000661,0.95749427,4045.6,4041.8,0.94410351]
[1760355000863,1.3061,4045.6,4045.5,3.2078]
[1760355001060,3.28519427,4046.1,4045.5,3.2078]
[1760355001061,0.00249159,4046.8,4045.5,3.21012951]
[1760355001263,1.30859159,4046.8,4046.7,3.2078]
[1760355001463,2.71469381,4046.7,4045.5,0.00232951]
[1760355001756,2.71469381,4046.7,4040.5,1.1127]
[1760355001757,2.71469381,4046.8,4045.1,3.2078]
[1760355001961,0.481,4048.9,4046.7,3.2078]
[1760355002152,11.10173,4049.8,4043.9,11.11782]
[1760355002153,3.2078,4051.3,4048.4,3.2078]
[1760355002353,0.3663,4052.7,4043.8,11.637]
[1760355002354,3.2078,4050.6,4049.0,3.2078]
[1760355002565,0.0022387,4050.6,4049.6,3.2078]
[1760355002761,3.2078,4049.2,4046.9,0.351]
[1760355002961,3.2078,4050.5,4048.0,3.2078]
[1760355003158,0.481,4048.9,4048.1,0.353]
[1760355003463,0.481,4048.9,4048.8,3.2078]
[1760355003464,1.7871,4048.9,4048.8,3.2078]
[1760355003665,1.7871,4048.9,4048.8,3.56257477]
[1760355003861,1.7871,4048.9,4048.8,3.80947477]
[1760355004061,1.3061,4051.6,4048.8,3.20957477]
[1760355004365,11.09157,4053.5,4051.3,3.2078]
[1760355004663,1.3061,4053.5,4053.4,40.8]
[1760355004967,1.3061,4054.7,4053.4,41.154]
[1760355005157,0.00296211,4054.6,4053.8,3.2078]
[1760355005467,11.08477,4056.0,4053.9,0.354]
[1760355005468,3.2078,4055.8,4053.9,0.354]
[1760355005662,0.4434,4055.9,4054.2,3.2078]
[1760355005964,3.2078,4056.2,4054.2,3.2078]
[1760355005965,3.2078,4056.2,4055.8,0.2469]
[1760355006159,1.3061,4056.9,4056.1,0.2469]
[1760355006358,0.00318558,4056.5,4056.4,44.0078]
[1760355006568,0.00318558,4056.5,4056.4,44.2565002]
[1760355007263,3.2078,4059.1,4056.4,44.4295002]
[1760355007466,11.07215,4060.6,4056.4,44.4295002]
[1760355007467,3.2078,4061.7,4058.1,0.654]
[1760355007659,3.2078,4061.7,4060.0,3.2078]
[1760355007858,2.56531432,4060.5,4060.0,3.2078]
[1760355008060,0.00241249,4060.5,4060.2,1.2696]
[1760355008255,3.2078,4061.5,4060.4,1.5165]
[1760355008461,3.2078,4062.7,4061.2,4.4774]
[1760355008661,3.2078,4062.7,4061.2,3.2078]
[1760355008857,3.2078,4063.2,4061.2,45.8783]
[1760355009063,1.3061,4063.8,4061.2,45.8783]
[1760355009269,1.3061,4064.8,4063.0,3.2078]
[1760355009456,1.3061,4064.8,4063.6,3.2078]
[1760355009457,0.00220046,4063.8,4063.6,3.2078]
[1760355009656,0.00220046,4063.8,4063.7,0.354]
[1760355009865,0.00220046,4063.8,4063.7,1.6236]
[1760355010059,1.3061,4065.8,4063.7,1.6236]
[1760355010060,0.44241,4064.9,4063.7,3.61585018]
[1760355010266,0.44226,4066.3,4064.7,3.2078]
[1760355010463,11.27394,4067.3,4066.3,1.2696]
[1760355010464,0.22,4067.3,4066.3,1.2696]
[1760355010674,0.22,4067.3,4066.4,0.354]
[1760355011174,1.3061,4068.9,4067.3,1.2696]
[1760355011175,3.2078,4068.4,4067.3,1.2696]
[1760355011469,2.65595805,4067.2,4066.7,0.354]
[1760355011665,0.44213,4067.6,4066.8,1.2696]
[1760355011973,3.2078,4067.8,4066.4,0.0022058]
[1760355012173,3.2078,4067.0,4066.5,0.354]
[1760355012468,0.00192637,4067.8,4066.4,0.0022058]
[1760355012469,3.2078,4066.7,4066.4,0.0022058]
[1760355012773,3.2078,4067.3,4066.4,0.0022058]
[1760355012971,3.2078,4067.5,4066.6,3.2078]
[1760355013168,0.44224,4066.5,4066.4,0.0022058]
[1760355013473,1.54797245,4066.5,4065.1,0.354]
[1760355013678,0.24187245,4066.5,4066.4,4.4774]
[1760355013971,0.00192637,4067.8,4064.0,11.57909]
[1760355013972,3.2078,4067.5,4065.5,3.2078]
[1760355014167,2.5633543,4066.5,4065.6,0.354]
[1760355014470,11.05453637,4067.8,4066.4,3.2078]
[1760355014471,4.4088938,4067.4,4066.4,3.2078]
[1760355014670,1.3061,4067.7,4066.5,40.8]
[1760355014876,5.83276902,4066.6,4066.5,0.355]
[1760355015074,3.25909874,4067.3,4067.0,0.44218]
[1760355015268,0.00192637,4067.8,4067.0,0.44218]
[1760355015269,0.00192637,4067.8,4067.1,40.8]
[1760355015572,1.7251,4067.5,4065.8,3.2078]
[1760355015770,1.7251,4067.5,4064.6,11.0612]
[1760355015771,1.7251,4067.0,4064.9,3.2078]
[1760355015975,1.7251,4065.5,4063.8,3.2078]
[1760355016174,1.7251,4064.8,4063.9,41.155]
[1760355016375,3.2078,4064.4,4064.2,0.44248]
[1760355016670,3.2078,4065.1,4063.9,40.8]
[1760355016870,0.73280866,4066.5,4063.9,40.8]
[1760355016871,3.2078,4066.4,4064.5,11.06147]
[1760355017072,11.04438,4070.9,4064.2,0.00311434]
[1760355017073,1.7251,4067.8,4065.8,11.05791]
[1760355017376,1.7251,4069.0,4067.3,3.2078]
[1760355017679,3.2078,4067.4,4067.0,0.356]
[1760355017878,0.13973647,4067.8,4067.6,0.44212]
[1760355018085,3.2078,4067.7,4067.6,0.00213179]
[1760355018288,4.9329,4067.7,4067.6,0.00213179]
[1760355018486,7.32759716,4067.7,4067.6,0.00213179]
[1760355018687,10.57378496,4067.7,4067.6,0.00213179]
[1760355018891,0.44212,4067.6,4065.4,3.2078]
[1760355019080,1.7251,4067.3,4065.5,1.46087]
[1760355019274,3.2078,4066.3,4065.9,0.4423]
[1760355019476,3.4674368,4067.2,4067.1,0.44217]
[1760355019676,0.00287499,4067.8,4067.6,0.44211]
[1760355019978,2.7823381,4067.7,4067.1,0.00257586]
[1760355020173,4.9329,4067.2,4067.1,0.00257586]
[1760355020377,3.2078,4067.2,4066.7,0.44221]
[1760355020580,3.2078,4067.2,4065.2,11.05953]
[1760355020581,2.72896728,4067.2,4066.2,11.05685]
[1760355020777,3.2078,4067.3,4066.6,3.2078]
[1760355020981,3.2078,4067.3,4064.6,1.10611]
[1760355020982,3.2078,4066.7,4066.3,0.354]
[1760355021187,2.55296778,4067.2,4066.9,0.44219]
[1760355021381,3.2078,4070.5,4069.0,11.04921]
[1760355021584,1.7251,4071.3,4070.1,0.44184]
[1760355021585,0.12009235,4070.3,4070.1,0.44184]
[1760355021878,3.2078,4071.6,4069.8,3.2078]
[1760355021879,0.481,4072.0,4071.8,0.44166]
[1760355022077,3.2078,4072.9,4071.9,0.354]
[1760355022282,0.667,4073.4,4073.2,0.44151]
[1760355022579,0.22175234,4073.3,4073.2,0.35715452]
[1760355022781,0.22175234,4073.3,4073.2,0.00315452]
[1760355022979,0.22175234,4073.3,4071.8,3.2078]
[1760355022980,1.7251,4073.2,4071.8,3.2078]
[1760355023183,0.22175234,4073.3,4070.1,13.04812445]
[1760355023184,0.22175234,4073.3,4072.3,3.2078]
[1760355023392,0.22175234,4073.3,4073.1,0.44151]
[1760355023583,0.22175234,4073.3,4072.0,1.10409]
[1760355023584,3.42955234,4073.3,4073.2,0.355]
[1760355023784,0.22175234,4073.3,4073.2,0.355]
[1760355023981,0.22175234,4073.3,4073.2,0.00306622]
[1760355024291,1.94685234,4073.3,4071.2,3.2078]
[1760355024590,3.2078,4072.8,4071.7,3.2078]
[1760355024982,1.94685234,4073.3,4070.9,0.355]
[1760355024983,0.667,4071.7,4070.9,0.355]
[1760355025181,0.667,4071.7,4071.0,0.2469]
[1760355025481,0.2823,4071.5,4071.4,0.44171]
[1760355025681,3.2078,4073.0,4072.8,0.44155]
[1760355025887,3.2078,4073.0,4072.9,0.355]
[1760355026085,0.667,4074.9,4072.9,0.355]
[1760355026086,3.2078,4074.5,4074.3,0.44139]
[1760355026292,0.1592,4076.3,4074.8,0.02514766]
[1760355026490,0.44121,4076.0,4074.6,3.2078]
[1760355026793,0.667,4075.2,4074.6,3.2078]
[1760355027182,3.2078,4074.9,4074.0,3.2078]
[1760355027381,3.2078,4074.9,4073.5,0.44147]
[1760355027382,0.44144,4073.9,4073.2,3.2078]
[1760355027582,4.9329,4073.3,4072.4,3.2078]
[1760355027782,4.9329,4073.3,4072.5,40.8]
[1760355027989,1.7251,4073.3,4072.4,3.2078]
[1760355028185,1.7251,4073.3,4072.5,0.02514766]
[1760355028384,1.7251,4073.3,4073.0,3.2078]
[1760355028587,1.7251,4073.3,4072.5,0.00240354]
[1760355028887,4.9329,4073.3,4072.5,0.00240354]
[1760355029085,4.9329,4073.3,4072.6,40.8]
[1760355029288,4.9329,4073.3,4072.5,0.00240354]
[1760355029485,4.9329,4073.3,4072.2,3.2078]
[1760355029486,4.9329,4072.6,4071.5,3.2078]
[1760355029686,0.667,4071.6,4070.3,11.04568]
[1760355029893,0.667,4071.6,4071.5,3.2078]
[1760355030092,0.667,4071.6,4071.5,3.5608]
[1760355030287,0.667,4071.6,4071.5,44.3598]
[1760355030583,2.39485544,4071.6,4071.5,44.01013468]
[1760355030786,2.39485544,4071.6,4071.5,44.03528234]
[1760355030787,0.66975544,4071.6,4071.5,44.03528234]
[1760355030990,0.66975544,4071.6,4071.5,42.82080578]
[1760355031396,0.66975544,4071.6,4071.5,42.79565812]
[1760355031791,0.66975544,4071.6,4071.5,43.17280578]
[1760355032092,0.66975544,4071.6,4071.5,42.82080578]
[1760355032490,2.39485544,4071.6,4071.5,1.99565812]
[1760355032688,0.66975544,4071.6,4071.5,1.99565812]
[1760355032884,0.66975544,4071.6,4071.5,2.02080578]
[1760355033291,0.66975544,4071.6,4071.5,1.99565812]
[1760355033494,2.39485544,4071.6,4071.5,1.99565812]
[1760355033692,2.39485544,4071.6,4070.0,3.2078]
[1760355033693,0.667,4070.4,4070.0,3.2078]
[1760355033892,2.3921,4070.4,4070.0,2.88565639]
[1760355034197,0.667,4070.4,4070.1,0.35]
[1760355034392,0.667,4070.4,4070.2,0.44183]
[1760355034592,0.31510543,4070.4,4070.2,0.44183]
[1760355034799,0.31510543,4070.4,4070.3,0.35]
[1760355035095,0.31510543,4070.4,4070.3,0.79182]
[1760355035296,0.66975544,4071.6,4070.3,0.79182]
[1760355035297,0.66975544,4071.6,4071.3,0.44171]
[1760355035498,0.36790094,4071.6,4071.4,0.7907]
[1760355035798,0.667,4073.4,4071.3,3.2078]
[1760355035992,0.667,4073.4,4070.6,1.10447]
[1760355035993,0.667,4073.4,4072.0,3.2078]
[1760355036196,0.667,4073.4,4072.8,0.44155]
[1760355036397,0.667,4073.4,4073.2,0.44151]
[1760355036695,3.2078,4075.0,4073.6,11.03666]
[1760355036896,0.667,4075.2,4073.4,11.03714]
[1760355036897,0.667,4075.2,4075.1,0.4413]
[1760355037094,0.66979263,4075.2,4075.1,2.34132344]
[1760355037296,0.44133,4074.9,4073.9,3.2078]
[1760355037596,0.66979263,4075.2,4073.8,0.348]
[1760355037597,3.2078,4074.5,4073.8,0.348]
[1760355037898,3.2078,4074.5,4073.9,40.8]
[1760355038089,0.667,4073.6,4073.2,0.00270973]
[1760355038286,0.667,4073.6,4073.4,3.2078]
[1760355038487,0.667,4073.6,4073.2,0.00270973]
[1760355038488,1.7251,4073.5,4073.2,0.00270973]
[1760355038690,1.10847,4073.6,4072.3,40.8]
[1760355038691,0.667,4073.6,4072.3,40.8]
[1760355038895,3.2078,4073.2,4072.4,0.348]
[1760355039198,0.44153,4073.0,4072.5,0.348]
[1760355039399,1.7251,4073.0,4072.5,41.148]
[1760355039694,0.667,4073.6,4072.5,40.80308431]
[1760355039903,4.9329,4072.6,4072.5,0.00308431]
[1760355040087,2.3921,4072.0,4071.7,1.99332344]
[1760355040287,0.667,4072.0,4071.7,1.99332344]
[1760355040494,1.7251,4071.9,4071.8,0.347]
[1760355040706,1.7251,4071.9,4071.3,40.8]
[1760355040996,1.72692187,4071.9,4071.4,0.347]
[1760355041194,0.44166,4071.8,4071.3,40.80182173]
[1760355041390,1.72692187,4071.9,4071.3,40.80182173]
[1760355041593,0.00182187,4071.9,4071.7,0.44166]
[1760355041895,3.2078,4073.1,4071.9,0.44165]
[1760355042100,0.667,4072.0,4071.6,3.2078]
[1760355042493,0.667,4072.0,4071.7,0.346]
[1760355042695,1.7251,4071.9,4071.7,0.345]
[1760355042894,0.66932031,4072.0,4071.7,0.345]
[1760355043095,0.66932031,4072.0,4071.8,0.44165]
[1760355043297,0.66932031,4072.0,4071.9,0.345]
[1760355043598,0.66932031,4072.0,4071.8,0.44165]
[1760355043798,0.00232031,4072.0,4071.9,0.345]
[1760355044003,0.00232031,4072.0,4071.8,0.44165]
[1760355044299,0.00232031,4072.0,4071.8,0.44417525]
[1760355044496,0.00232031,4072.0,4071.9,0.344]
[1760355044897,0.00232031,4072.0,4071.8,0.44417525]
[1760355045199,0.00232031,4072.0,4071.8,0.00252525]
[1760355045495,1.80302031,4072.0,4071.8,0.00252525]
[1760355045897,0.6972,4072.5,4072.4,0.4416]
[1760355046102,0.6972,4072.5,4072.4,0.7856]
[1760355046299,0.667,4073.6,4073.5,0.44148]
[1760355046497,0.667,4073.6,4073.5,0.78548]
[1760355046796,5.0575,4074.6,4074.2,0.44139]
[1760355046797,3.2078,4074.6,4074.2,0.44139]
[1760355046998,3.2078,4074.6,4073.5,3.2078]
[1760355047303,3.21055853,4074.6,4073.5,3.21048062]
[1760355047496,0.6972,4074.0,4073.6,0.343]
[1760355047697,0.6972,4074.0,4073.5,0.00268062]
[1760355048002,1.8497,4073.9,4073.6,0.343]
[1760355048199,1.8497,4073.9,4073.5,0.00268062]
[1760355048200,1.8497,4073.6,4073.5,0.00268062]
[1760355048405,5.0575,4073.6,4073.5,0.00268062]
[1760355049003,5.0575,4073.6,4073.5,0.34468062]
[1760355049300,5.0575,4073.6,4070.2,1.10458]
[1760355049504,3.2078,4070.3,4069.0,3.2078]
[1760355049804,3.2078,4070.3,4069.5,3.2078]
[1760355050012,3.2078,4070.3,4067.1,1.73412025]
[1760355050013,3.2078,4069.6,4067.4,1.10533]
[1760355050304,1.8497,4069.0,4068.7,0.10903317]
[1760355050603,1.8497,4068.9,4068.7,0.10903317]
[1760355050803,1.8497,4068.8,4068.7,0.10903317]
[1760355051300,3.2078,4069.0,4068.7,0.10903317]
[1760355051301,5.0575,4069.0,4068.7,0.10903317]
[1760355051503,1.8497,4068.9,4068.7,0.10903317]
[1760355051798,1.8497,4068.9,4068.4,0.341]
[1760355052106,1.8497,4068.9,4067.2,3.2078]
[1760355052107,1.8497,4068.4,4068.1,0.34]
[1760355052305,0.44211,4067.7,4066.2,1.99332344]
[1760355052498,3.2078,4067.6,4066.2,1.99332344]
[1760355052698,3.2078,4067.0,4066.3,0.78225]
[1760355052899,3.2078,4067.0,4066.2,1.99514733]
[1760355053102,0.6972,4066.5,4066.3,0.34]
[1760355053299,0.69969751,4066.5,4066.4,0.44225]
[1760355053715,0.69969751,4066.5,4066.2,0.00182389]
[1760355053915,1.8497,4066.3,4066.2,0.00182389]
[1760355054208,1.8497,4066.3,4065.5,0.339]
[1760355054407,5.17845407,4066.3,4065.5,3.2078]
[1760355054600,0.6972,4065.0,4064.8,3.2078]
[1760355054805,0.6972,4065.0,4064.9,0.339]
[1760355054996,2.5469,4065.0,4063.8,3.2078]
[1760355055197,2.5469,4065.0,4063.9,0.339]
[1760355055198,3.2078,4064.5,4063.9,0.339]
[1760355055405,3.2078,4064.5,4063.4,2.33324746]
[1760355055406,0.4425,4064.1,4063.4,2.33324746]
[1760355055603,0.6972,4063.5,4062.3,3.2078]
[1760355055813,3.2078,4063.4,4063.2,0.58510841]
[1760355056005,0.6972,4063.5,4063.3,0.339]
[1760355056199,0.6972,4063.5,4063.3,3.65038]
[1760355056405,0.69994464,4063.5,4063.4,0.339]
[1760355056607,0.6972,4065.0,4063.4,0.338]
[1760355056811,0.6972,4065.0,4064.6,0.44243]
[1760355057108,0.6972,4065.0,4064.1,3.2078]
[1760355057109,5.7547,4065.0,4064.1,3.2078]
[1760355057506,0.6972,4066.5,4064.9,3.2078]
[1760355057706,0.69944603,4066.5,4066.3,3.2078]
[1760355058006,1.8497,4066.4,4065.7,3.2078]
[1760355058203,2.5469,4065.6,4064.8,3.2078]
[1760355058411,1.8497,4065.5,4064.6,0.44244]
[1760355058609,2.57562078,4065.5,4064.7,40.8]
[1760355058814,2.57562078,4065.5,4064.8,0.78141]
[1760355059006,1.8497,4064.7,4064.1,0.00227829]
[1760355059202,1.8497,4064.7,4062.4,1.10671]
[1760355059203,1.8497,4063.9,4062.4,3.2078]
[1760355059405,1.8497,4063.6,4062.8,0.36261357]
[1760355059600,0.44254,4063.8,4062.8,0.36261357]
[1760355059601,0.27249166,4063.8,4063.0,0.44262]
[1760355059902,0.6972,4064.0,4063.4,3.2078]
[1760355060213,0.69997716,4064.0,4063.9,3.2078]
[1760355060710,2.5469,4065.6,4064.0,1.10627]
[1760355060911,2.5469,4065.6,4064.9,3.2078]
[1760355061121,0.6972,4065.6,4065.4,0.44235]
[1760355061406,0.6972,4065.6,4064.9,3.2078]
[1760355061407,1.13945,4066.5,4065.5,3.2078]
[1760355061606,1.8497,4065.8,4065.6,0.337]
[1760355061914,0.6972,4065.6,4064.9,3.2078]
[1760355062110,0.6972,4065.6,4063.2,2.45908841]
[1760355062111,1.8497,4065.0,4063.5,3.2078]
[1760355062309,1.8497,4065.0,4063.2,0.24610841]
[1760355062310,1.8497,4063.9,4063.8,3.2078]
[1760355062607,0.6972,4064.0,4063.8,3.98732]
[1760355062812,0.6972,4064.0,4063.9,0.337]
[1760355063008,0.6972,4064.0,4063.8,0.44252]
[1760355063405,0.6972,4064.0,4063.9,0.337]
[1760355063605,0.6972,4065.6,4064.2,1.10622]
[1760355063919,1.8497,4065.5,4065.3,0.44237]
[1760355064212,1.8497,4065.5,4065.2,3.2078]
[1760355064213,1.8497,4065.5,4065.4,0.336]
[1760355064510,0.337,4067.0,4065.2,3.65018]
[1760355064511,3.905,4066.5,4065.2,2.77167344]
[1760355064710,0.6972,4066.5,4065.7,3.65012]
[1760355065210,0.6972,4066.5,4066.4,0.44225]
[1760355065411,0.6972,4066.5,4066.4,3.98605]
[1760355065811,0.6972,4068.0,4066.8,1.10551]
[1760355066010,0.69974732,4068.0,4067.8,0.44209]
[1760355066213,2.54944732,4068.0,4067.1,3.2078]
[1760355066513,1.8497,4067.3,4067.2,0.336]
[1760355066706,5.0575,4067.5,4066.8,0.00255073]
[1760355066910,5.0575,4067.5,4066.9,0.335]
[1760355067208,0.69974732,4068.0,4067.9,0.44209]
[1760355067404,0.69974732,4068.0,4067.9,0.77709]
[1760355067610,1.8497,4069.1,4067.9,0.335]
[1760355067819,3.2078,4069.7,4069.3,0.44193]
[1760355068021,3.2078,4069.7,4068.4,1.10509]
[1760355068022,3.2078,4069.7,4069.4,0.335]
[1760355068312,3.2078,4070.3,4069.9,0.44187]
[1760355068514,3.2078,4070.3,4070.2,0.44184]
[1760355068515,3.20982422,4070.3,4070.2,0.44184]
[1760355068812,0.6972,4072.5,4070.9,11.04392]
[1760355069013,0.44146,4073.7,4072.4,3.2078]
[1760355069207,3.2078,4073.3,4072.5,0.335]
[1760355069405,0.6972,4072.5,4072.3,0.335]
[1760355069706,0.6972,4072.5,4070.2,41.90457]
[1760355069707,0.69921163,4072.5,4072.1,0.335]
[1760355070021,0.69921163,4072.5,4071.4,3.2078]
[1760355070022,1.8497,4072.0,4071.4,3.2078]
[1760355070205,1.8497,4072.0,4071.3,0.335]
[1760355070410,1.8497,4072.0,4071.4,0.335]
[1760355070717,0.69921163,4072.5,4071.7,3.2078]
[1760355071013,1.8497,4072.4,4071.4,3.2078]
[1760355071216,0.44161,4072.3,4071.4,3.2078]
[1760355071419,1.8497,4072.4,4071.4,3.2078]
[1760355071716,0.44163,4072.1,4071.2,0.334]
[1760355072016,0.69921163,4072.5,4071.1,3.2078]
[1760355072215,0.44167,4071.8,4071.1,3.2078]
[1760355072511,3.2078,4071.9,4070.4,3.2078]
[1760355072714,0.6972,4071.0,4070.9,3.2078]
[1760355073011,0.6972,4071.0,4070.5,0.334]
[1760355073012,1.8497,4070.9,4070.7,3.2078]
[1760355073315,1.8497,4070.9,4070.5,0.333]
[1760355073316,0.44176,4070.9,4070.5,0.333]
[1760355073618,0.44176,4070.9,4070.7,1.99332344]
[1760355073619,1.8497,4070.9,4070.7,1.99332344]
[1760355074005,0.6972,4071.0,4070.8,0.44177]
[1760355074610,0.6972,4071.0,4070.9,40.8]
[1760355074914,0.6972,4071.0,4070.9,41.132]
[1760355075810,3.2078,4072.1,4071.6,0.44167]
[1760355076006,3.2078,4072.1,4072.0,0.44164]
[1760355076206,0.69921163,4072.5,4072.0,3.2078]
[1760355076416,0.69921163,4072.5,4072.1,0.332]
[1760355076720,1.8546,4072.4,4072.0,3.2078]
[1760355077014,1.8546,4072.4,4072.1,0.332]
[1760355077215,1.14080163,4072.5,4072.1,0.332]
[1760355077216,0.69921163,4072.5,4072.3,0.4416]
[1760355077517,0.69921163,4072.5,4072.4,3.2078]
[1760355077716,1.8546,4075.0,4073.9,0.44143]
[1760355077912,1.8546,4075.0,4073.9,3.98023]
[1760355078119,3.2078,4075.2,4074.0,1.10355]
[1760355078317,3.2078,4075.2,4074.1,40.8]
[1760355078617,1.8546,4075.1,4074.1,41.24141]
[1760355078811,1.85771937,4075.1,4074.9,0.44132]
[1760355079010,1.85771937,4075.1,4074.9,0.33]
[1760355079011,0.00311937,4075.1,4074.9,0.33]
[1760355079207,0.00311937,4075.1,4075.0,0.44132]
[1760355079614,1.8546,4075.0,4074.7,3.2078]
[1760355079817,0.00311937,4075.1,4074.3,3.5378]
[1760355080119,0.00311937,4075.1,4073.1,1.10381]
[1760355080120,0.7447,4072.6,4072.4,3.2078]
[1760355080326,0.7447,4072.6,4072.5,41.24159]
[1760355080521,0.7447,4072.6,4071.4,1.10427]
[1760355080522,0.7447,4072.6,4072.2,0.44161]
[1760355080813,1.8546,4072.5,4071.6,3.2078]
[1760355081021,1.8546,4072.5,4071.5,0.329]
[1760355081022,0.44163,4072.2,4070.9,3.2078]
[1760355081218,0.00211558,4072.2,4071.7,0.44166]
[1760355081408,0.00211558,4072.2,4071.6,0.44168]
[1760355081824,0.00211558,4072.2,4071.5,0.33125316]
[1760355081825,1.8546,4072.1,4071.5,0.00225316]
[1760355082110,0.00211558,4072.2,4071.5,0.00225316]
[1760355082111,2.29628,4071.6,4071.5,0.00225316]
[1760355082312,5.0624,4071.6,4071.5,0.00225316]
[1760355082514,1.8546,4071.1,4070.8,0.44176]
[1760355082818,0.7447,4071.2,4070.8,0.44176]
[1760355083022,0.7447,4071.2,4071.0,0.44174]
[1760355083222,0.7447,4071.2,4071.1,0.328]
[1760355083413,3.2078,4071.6,4071.5,0.44169]
[1760355083717,0.7447,4072.6,4072.0,0.44163]
[1760355083919,0.7447,4072.6,4072.1,0.328]
[1760355084520,1.85671558,4072.2,4072.1,0.328]
[1760355084717,0.00211558,4072.2,4072.1,0.76963]
[1760355084917,0.00211558,4072.2,4072.1,3.97743]
[1760355085319,3.2078,4074.6,4073.7,0.44146]
[1760355085512,1.10281,4076.9,4073.7,0.44146]
[1760355085513,2.1816,4075.5,4073.9,1.10359]
[1760355085820,3.2078,4075.2,4074.8,0.44133]
[1760355086026,3.2078,4075.2,4074.3,0.327]
[1760355086320,1.8546,4075.1,4074.9,0.44132]
[1760355086523,1.8546,4075.0,4074.7,0.44135]
[1760355086722,1.8546,4074.9,4074.7,0.44135]
[1760355087117,3.21030214,4075.2,4074.3,0.32963163]
[1760355087312,3.21030214,4075.2,4074.8,0.44133]
[1760355087619,3.21030214,4075.2,4074.3,0.32963163]
[1760355087816,3.2078,4074.6,4074.4,40.8]
[1760355088020,1.8546,4074.5,4074.3,0.32963163]
[1760355088221,1.8546,4074.4,4074.3,0.00263163]
[1760355088518,3.2078,4074.6,4074.3,0.00263163]
[1760355088920,1.8546,4074.5,4074.4,0.44137]
[1760355089123,1.8546,4074.5,4073.7,0.325]
[1760355089332,3.2078,4074.6,4073.7,3.5328]
[1760355089521,3.2078,4074.6,4074.1,0.44141]
[1760355089820,3.2078,4074.6,4074.2,41.5664]
[1760355090123,3.2078,4074.6,4074.5,0.44137]
[1760355090324,3.2078,4075.1,4075.0,0.44132]
[1760355090514,0.00250214,4075.2,4074.9,0.44132]
[1760355090714,0.00250214,4075.2,4074.8,0.324]
[1760355090715,0.00250214,4075.2,4075.1,0.4413]
[1760355091123,1.8546,4076.5,4076.3,0.44117]
[1760355091314,0.8975,4076.8,4076.7,0.44113]
[1760355091826,0.1528,4076.8,4076.7,0.44113]
[1760355092014,0.1528,4076.8,4076.7,0.76513]
[1760355092015,0.15497724,4076.8,4076.7,0.76513]
[1760355092215,3.2078,4077.9,4077.6,0.44103]
[1760355092412,8.0,4078.0,4077.7,0.324]
[1760355092923,8.0,4078.0,4077.7,0.76502]
[1760355093120,0.02465892,4077.8,4077.7,0.76707044]
[1760355093419,8.0,4078.0,4077.8,0.44101]
[1760355093622,5.07012869,4077.8,4077.7,0.00205044]
[1760355093822,8.0,4078.0,4077.9,0.441]
[1760355094013,1.08070756,4078.0,4077.9,0.441]
[1760355094316,1.08070756,4078.0,4077.9,41.241]
[1760355094523,0.50698081,4078.0,4077.9,41.241]
[1760355094717,0.50698081,4078.0,4077.9,41.564]
[1760355095624,0.50698081,4078.0,4077.9,41.563]
[1760355095811,0.50698081,4078.0,4077.9,40.8]
[1760355096016,0.50698081,4078.0,4077.9,41.122]
[1760355096519,0.50698081,4078.0,4077.9,40.8]
[1760355097116,5.56938081,4078.0,4077.9,40.8]
[1760355097418,0.50698081,4078.0,4077.9,40.8]
[1760355097619,6.01037081,4078.0,4077.9,40.8]
[1760355097821,5.56938081,4078.0,4077.9,41.44186572]
[1760355098011,3.71478081,4078.0,4077.9,41.44186572]
[1760355098214,0.50698081,4078.0,4077.9,41.44186572]
[1760355099219,0.21307952,4078.0,4077.9,41.44186572]
[1760355099424,9.52e-06,4078.0,4077.9,41.44186572]
[1760355099619,9.52e-06,4078.0,4077.9,41.12086572]
[1760355100220,1.85460952,4078.0,4077.9,41.12086572]
[1760355100420,1.85460952,4078.0,4077.9,41.44086572]
[1760355100719,1.87521,4079.0,4078.9,0.44089]
[1760355100913,1e-05,4079.3,4079.2,0.44086]
[1760355101116,1e-05,4079.3,4079.2,1.08272572]
[1760355101320,0.1672,4081.0,4080.6,0.44071]